[Event "*** Titled Tuesday Blitz"]
[Site "Chess.com"]
[Date "2020.12.29"]
[Round "4"]
[White "BahadirOzen"]
[Black "mishanick"]
[Result "0-1"]
[WhiteElo "2778"]
[BlackElo "2992"]
[TimeControl "180+1"]
[EndTime "10:37:40 PST"]
[Termination "mishanick won by resignation"]

1. Nf3 {[%clk 0:03:00.9]} 1... Nf6 {[%clk 0:02:56]} 2. c4 {[%clk 0:03:00.5]}
2... g6 {[%clk 0:02:56.6]} 3. Nc3 {[%clk 0:03:00.7]} 3... d5 {[%clk 0:02:57.3]}
4. cxd5 {[%clk 0:03:00.6]} 4... Nxd5 {[%clk 0:02:58.2]} 5. e4 {[%clk 0:03:00.1]}
5... Nxc3 {[%clk 0:02:58.3]} 6. dxc3 {[%clk 0:03:01]} 6... Qxd1+ {[%clk
0:02:57.8]} 7. Kxd1 {[%clk 0:03:01.9]} 7... Nd7 {[%clk 0:02:58]} 8. Bf4 {[%clk
0:02:56.6]} 8... c6 {[%clk 0:02:58.2]} 9. Kc2 {[%clk 0:02:53.2]} 9... f6 {[%clk
0:02:57.3]} 10. Nd2 {[%clk 0:02:45.2]} 10... e5 {[%clk 0:02:56.5]} 11. Be3
{[%clk 0:02:45.8]} 11... Bc5 {[%clk 0:02:56.2]} 12. Re1 {[%clk 0:02:43.5]} 12...
Ke7 {[%clk 0:02:55.2]} 13. Bc4 {[%clk 0:02:39.6]} 13... a5 {[%clk 0:02:54.7]}
14. a4 {[%clk 0:02:31.5]} 14... Rd8 {[%clk 0:02:50.9]} 15. h4 {[%clk 0:02:19.9]}
15... Bxe3 {[%clk 0:02:50.7]} 16. Rxe3 {[%clk 0:02:20.8]} 16... Nc5 {[%clk
0:02:51.3]} 17. b3 {[%clk 0:02:20.1]} 17... Be6 {[%clk 0:02:38.8]} 18. Bxe6
{[%clk 0:02:18.3]} 18... Kxe6 {[%clk 0:02:39.7]} 19. h5 {[%clk 0:02:15.2]} 19...
g5 {[%clk 0:02:39.4]} 20. Nc4 {[%clk 0:01:36.4]} 20... b5 {[%clk 0:02:38.3]} 21.
axb5 {[%clk 0:01:37.3]} 21... cxb5 {[%clk 0:02:38.2]} 22. Na3 {[%clk 0:01:34]}
22... b4 {[%clk 0:02:20.8]} 23. Nb5 {[%clk 0:01:33.9]} 23... Rac8 {[%clk
0:02:20.2]} 24. Ra1 {[%clk 0:01:31.9]} 24... a4 {[%clk 0:02:19.6]} 25. bxa4
{[%clk 0:01:19.7]} 25... b3+ {[%clk 0:02:19.9]} 26. Kc1 {[%clk 0:01:19.3]} 26...
Nd3+ {[%clk 0:02:18.3]} 27. Kb1 {[%clk 0:01:18.2]} 27... Nxf2 {[%clk 0:02:04]}
28. Kb2 {[%clk 0:01:02.8]} 28... Nd1+ {[%clk 0:02:02.6]} 29. Rxd1 {[%clk
0:01:03.3]} 29... Rxd1 {[%clk 0:02:03.2]} 30. Kxb3 {[%clk 0:01:01.5]} 30... Rb1+
{[%clk 0:02:03.2]} 31. Kc2 {[%clk 0:00:57.8]} 31... Rg1 {[%clk 0:02:01.1]} 32.
Re2 {[%clk 0:00:57.3]} 32... g4 {[%clk 0:01:58.6]} 33. Rd2 {[%clk 0:00:52]}
33... g3 {[%clk 0:01:55.5]} 34. Kb3 {[%clk 0:00:45.8]} 34... Rb1+ {[%clk
0:01:53.8]} 35. Ka3 {[%clk 0:00:43.5]} 35... Rc4 {[%clk 0:01:47.9]} 36. Nd6
{[%clk 0:00:36.4]} 36... Ra1+ {[%clk 0:01:43.1]} 37. Kb3 {[%clk 0:00:34.2]}
37... Rcxa4 {[%clk 0:01:43.5]} 38. Nc4 {[%clk 0:00:30.9]} 38... Ra6 {[%clk
0:01:41.7]} 39. Rd3 {[%clk 0:00:29.9]} 39... Rb1+ {[%clk 0:01:40.6]} 40. Kc2
{[%clk 0:00:30]} 40... Re1 {[%clk 0:01:41.2]} 41. Rxg3 {[%clk 0:00:30]} 41...
Rxe4 {[%clk 0:01:39.6]} 42. Kd3 {[%clk 0:00:24.5]} 42... Rh4 {[%clk 0:01:39.2]}
43. Rg8 {[%clk 0:00:25]} 43... Rxh5 {[%clk 0:01:38.9]} 44. g4 {[%clk 0:00:25.6]}
44... Rh3+ {[%clk 0:01:38.4]} 45. Ne3 {[%clk 0:00:26.1]} 45... Ra4 {[%clk
0:01:36.4]} 46. Re8+ {[%clk 0:00:25.6]} 46... Kf7 {[%clk 0:01:36.5]} 47. Rc8
{[%clk 0:00:25]} 47... Rxg4 {[%clk 0:01:36.7]} 0-1

[Event "*** Titled Tuesday Blitz"]
[Site "Chess.com"]
[Date "2020.12.29"]
[Round "4"]
[White "Stouuf"]
[Black "omer1997"]
[Result "0-1"]
[WhiteElo "2585"]
[BlackElo "2389"]
[TimeControl "180+1"]
[EndTime "10:37:42 PST"]
[Termination "omer1997 won by checkmate"]

1. e4 {[%clk 0:03:00.9]} 1... e5 {[%clk 0:02:59.6]} 2. Nf3 {[%clk 0:02:59.7]}
2... Nf6 {[%clk 0:02:47.3]} 3. Nxe5 {[%clk 0:02:58.8]} 3... d6 {[%clk
0:02:46.2]} 4. Nf3 {[%clk 0:02:56.5]} 4... Nxe4 {[%clk 0:02:45.8]} 5. d4 {[%clk
0:02:57.4]} 5... d5 {[%clk 0:02:43.7]} 6. Bd3 {[%clk 0:02:57.5]} 6... Nc6 {[%clk
0:02:41.9]} 7. O-O {[%clk 0:02:56.3]} 7... Be7 {[%clk 0:02:41.9]} 8. c4 {[%clk
0:02:45.2]} 8... Bf5 {[%clk 0:02:41.5]} 9. Nc3 {[%clk 0:02:38.8]} 9... Nb4
{[%clk 0:02:30.6]} 10. Be2 {[%clk 0:02:36.7]} 10... Nxc3 {[%clk 0:02:12.3]} 11.
bxc3 {[%clk 0:02:36.2]} 11... Nc2 {[%clk 0:02:13.2]} 12. Rb1 {[%clk 0:02:36.1]}
12... Nxd4 {[%clk 0:02:13.8]} 13. Rxb7 {[%clk 0:02:33.2]} 13... Nxe2+ {[%clk
0:02:05.4]} 14. Qxe2 {[%clk 0:02:32.8]} 14... O-O {[%clk 0:02:05.6]} 15. Rd1
{[%clk 0:01:52]} 15... Qc8 {[%clk 0:01:25.8]} 16. Rb5 {[%clk 0:01:50.6]} 16...
c6 {[%clk 0:01:21.4]} 17. Qxe7 {[%clk 0:01:10.6]} 17... cxb5 {[%clk 0:01:19.2]}
18. cxd5 {[%clk 0:01:11.1]} 18... Qxc3 {[%clk 0:01:02.7]} 19. d6 {[%clk
0:01:02.8]} 19... Rfe8 {[%clk 0:00:31.2]} 20. Qg5 {[%clk 0:01:00.8]} 20... Qc2
{[%clk 0:00:27.4]} 21. Rf1 {[%clk 0:00:55.6]} 21... h6 {[%clk 0:00:20.2]} 22.
Qf4 {[%clk 0:00:50]} 22... Bd3 {[%clk 0:00:17.6]} 23. Re1 {[%clk 0:00:49.4]}
23... Rxe1+ {[%clk 0:00:16.7]} 24. Nxe1 {[%clk 0:00:48.3]} 24... Qe2 {[%clk
0:00:14.8]} 25. Qd2 {[%clk 0:00:47.8]} 25... Qf1# {[%clk 0:00:14.6]} 0-1

[Event "*** Titled Tuesday Blitz"]
[Site "Chess.com"]
[Date "2020.12.29"]
[Round "4"]
[White "MIJuanReyesRosa"]
[Black "eightbyeightchess"]
[Result "1-0"]
[WhiteElo "2074"]
[BlackElo "2370"]
[TimeControl "180+1"]
[EndTime "10:37:45 PST"]
[Termination "MIJuanReyesRosa won by checkmate"]

1. d4 {[%clk 0:02:58.8]} 1... d5 {[%clk 0:01:26.1]} 2. c4 {[%clk 0:02:56.8]}
2... c6 {[%clk 0:01:25.9]} 3. Nc3 {[%clk 0:02:56.6]} 3... Nf6 {[%clk 0:01:26.4]}
4. Nf3 {[%clk 0:02:55.6]} 4... dxc4 {[%clk 0:01:26.8]} 5. e3 {[%clk 0:02:54.9]}
5... b5 {[%clk 0:01:26.3]} 6. a4 {[%clk 0:02:54.9]} 6... b4 {[%clk 0:01:26.4]}
7. Na2 {[%clk 0:02:55.1]} 7... e6 {[%clk 0:01:27]} 8. Bxc4 {[%clk 0:02:54.9]}
8... Ke7 {[%clk 0:01:25.8]} 9. Nxb4 {[%clk 0:02:44]} 9... Ke8 {[%clk 0:01:21.4]}
10. Nd3 {[%clk 0:02:39.6]} 10... Ba6 {[%clk 0:01:20.1]} 11. Bxa6 {[%clk
0:02:36]} 11... Nxa6 {[%clk 0:01:21]} 12. O-O {[%clk 0:02:34.4]} 12... Nc7
{[%clk 0:01:21.9]} 13. Nde5 {[%clk 0:02:32.8]} 13... Bd6 {[%clk 0:01:18.1]} 14.
b3 {[%clk 0:02:20.2]} 14... Ncd5 {[%clk 0:01:11.8]} 15. Qc2 {[%clk 0:02:00.1]}
15... Rc8 {[%clk 0:01:10.6]} 16. Ba3 {[%clk 0:01:45.3]} 16... Bxa3 {[%clk
0:01:08.4]} 17. Rxa3 {[%clk 0:01:44.8]} 17... Qd6 {[%clk 0:01:09.3]} 18. Raa1
{[%clk 0:01:38.8]} 18... h5 {[%clk 0:01:08.7]} 19. Ng5 {[%clk 0:01:28.5]} 19...
Ng4 {[%clk 0:01:06.5]} 20. Ngxf7 {[%clk 0:01:17.1]} 20... Qc7 {[%clk 0:01:06]}
21. Nxh8 {[%clk 0:01:09.6]} 21... Nxe5 {[%clk 0:01:05.9]} 22. dxe5 {[%clk
0:01:06.5]} 22... Qxe5 {[%clk 0:01:06.8]} 23. Qg6+ {[%clk 0:00:55.5]} 23... Kd7
{[%clk 0:01:06.9]} 24. Nf7 {[%clk 0:00:47.4]} 24... Qb2 {[%clk 0:01:02.3]} 25.
Rad1 {[%clk 0:00:42.8]} 25... Rf8 {[%clk 0:01:00.6]} 26. e4 {[%clk 0:00:37.2]}
26... Kc7 {[%clk 0:00:57.4]} 27. exd5 {[%clk 0:00:34.2]} 27... cxd5 {[%clk
0:00:58.3]} 28. Rc1+ {[%clk 0:00:30.2]} 28... Kb7 {[%clk 0:00:57.9]} 29. Nd6+
{[%clk 0:00:27.1]} 29... Ka6 {[%clk 0:00:57.1]} 30. Qd3+ {[%clk 0:00:24.6]}
30... Kb6 {[%clk 0:00:56.7]} 31. Qb5# {[%clk 0:00:22.1]} 1-0

[Event "*** Titled Tuesday Blitz"]
[Site "Chess.com"]
[Date "2020.12.29"]
[Round "4"]
[White "StockholmMissile"]
[Black "Margarita2907"]
[Result "1-0"]
[WhiteElo "2414"]
[BlackElo "2192"]
[TimeControl "180+1"]
[EndTime "10:37:47 PST"]
[Termination "StockholmMissile won on time"]

1. d4 {[%clk 0:03:00.9]} 1... d5 {[%clk 0:02:59.3]} 2. c4 {[%clk 0:03:00.6]}
2... e6 {[%clk 0:02:59]} 3. Nf3 {[%clk 0:03:00.7]} 3... Nf6 {[%clk 0:02:58.7]}
4. Bg5 {[%clk 0:03:00.7]} 4... Be7 {[%clk 0:02:56.6]} 5. e3 {[%clk 0:03:00.6]}
5... h6 {[%clk 0:02:55.4]} 6. Bxf6 {[%clk 0:03:00.5]} 6... Bxf6 {[%clk 0:02:55]}
7. Qc2 {[%clk 0:03:01.1]} 7... O-O {[%clk 0:02:53.5]} 8. h4 {[%clk 0:03:01.1]}
8... g6 {[%clk 0:02:46.6]} 9. Nc3 {[%clk 0:02:54.6]} 9... a6 {[%clk 0:02:26.7]}
10. Bd3 {[%clk 0:02:26.5]} 10... dxc4 {[%clk 0:02:24.4]} 11. Bxc4 {[%clk
0:02:27.4]} 11... b5 {[%clk 0:02:24.2]} 12. Bd3 {[%clk 0:02:27.6]} 12... Bb7
{[%clk 0:02:22.1]} 13. Ne4 {[%clk 0:02:22]} 13... Bg7 {[%clk 0:02:20.1]} 14. Nc5
{[%clk 0:02:21.9]} 14... Bc6 {[%clk 0:02:15]} 15. Rc1 {[%clk 0:02:15.7]} 15...
Qd6 {[%clk 0:01:48.2]} 16. Be4 {[%clk 0:02:07.6]} 16... Bxe4 {[%clk 0:01:45.3]}
17. Nxe4 {[%clk 0:02:02.3]} 17... Qb4+ {[%clk 0:01:44.1]} 18. Kf1 {[%clk
0:01:55.9]} 18... c6 {[%clk 0:01:42.8]} 19. Nc5 {[%clk 0:01:50.6]} 19... Qa5
{[%clk 0:01:29.8]} 20. Qe4 {[%clk 0:01:35.4]} 20... Qc7 {[%clk 0:01:21.5]} 21.
g3 {[%clk 0:01:14]} 21... Rc8 {[%clk 0:01:03]} 22. Kg2 {[%clk 0:00:53.4]} 1-0

[Event "*** Titled Tuesday Blitz"]
[Site "Chess.com"]
[Date "2020.12.29"]
[Round "4"]
[White "ChrisTool2"]
[Black "bogcsab"]
[Result "0-1"]
[WhiteElo "2368"]
[BlackElo "2049"]
[TimeControl "180+1"]
[EndTime "10:37:49 PST"]
[Termination "bogcsab won on time"]

1. e4 {[%clk 0:03:00.9]} 1... d6 {[%clk 0:02:58.7]} 2. d4 {[%clk 0:02:57.1]}
2... Nf6 {[%clk 0:02:59.2]} 3. Bd3 {[%clk 0:02:53.3]} 3... g6 {[%clk 0:02:59.3]}
4. c4 {[%clk 0:02:50.3]} 4... Bg7 {[%clk 0:02:57.2]} 5. Nc3 {[%clk 0:02:49.9]}
5... O-O {[%clk 0:02:57.1]} 6. Nge2 {[%clk 0:02:49.2]} 6... e5 {[%clk 0:02:57]}
7. d5 {[%clk 0:02:47.1]} 7... Nbd7 {[%clk 0:02:56.9]} 8. f3 {[%clk 0:02:45.4]}
8... Nc5 {[%clk 0:02:56.1]} 9. Bc2 {[%clk 0:02:41.6]} 9... Nh5 {[%clk
0:02:55.7]} 10. Be3 {[%clk 0:02:33.8]} 10... f5 {[%clk 0:02:54.7]} 11. b4 {[%clk
0:02:07.9]} 11... Na6 {[%clk 0:02:53.8]} 12. a3 {[%clk 0:01:58.8]} 12... fxe4
{[%clk 0:02:53.6]} 13. Nxe4 {[%clk 0:01:51.1]} 13... Nf4 {[%clk 0:02:51.4]} 14.
Nxf4 {[%clk 0:01:45.6]} 14... exf4 {[%clk 0:02:50.8]} 15. Bd4 {[%clk 0:01:46]}
15... Bf5 {[%clk 0:02:48]} 16. Bxg7 {[%clk 0:01:41.6]} 16... Kxg7 {[%clk
0:02:45.4]} 17. Qd4+ {[%clk 0:01:42]} 17... Kg8 {[%clk 0:02:41.2]} 18. O-O
{[%clk 0:01:38.5]} 18... Bxe4 {[%clk 0:02:40.6]} 19. Qxe4 {[%clk 0:01:32.7]}
19... Qe8 {[%clk 0:02:31.1]} 20. Rae1 {[%clk 0:01:29]} 20... Qxe4 {[%clk
0:02:29.3]} 21. Rxe4 {[%clk 0:01:28.3]} 21... Rae8 {[%clk 0:02:27.8]} 22. Rfe1
{[%clk 0:01:25]} 22... Rxe4 {[%clk 0:02:27.3]} 23. Rxe4 {[%clk 0:01:06.8]} 23...
g5 {[%clk 0:02:26.9]} 24. Re7 {[%clk 0:01:02.2]} 24... Rf7 {[%clk 0:02:12.5]}
25. Rxf7 {[%clk 0:00:47.3]} 25... Kxf7 {[%clk 0:02:12.5]} 26. Bxh7 {[%clk
0:00:48.2]} 26... Kf6 {[%clk 0:02:12.9]} 27. Bd3 {[%clk 0:00:35.7]} 27... Ke5
{[%clk 0:02:12.6]} 28. Kf1 {[%clk 0:00:32.5]} 28... Kd4 {[%clk 0:02:12.7]} 29.
Ke2 {[%clk 0:00:31.5]} 29... Kc3 {[%clk 0:02:09.4]} 30. g3 {[%clk 0:00:30.7]}
30... fxg3 {[%clk 0:02:08]} 31. hxg3 {[%clk 0:00:30.7]} 31... Kb2 {[%clk
0:02:07.8]} 32. f4 {[%clk 0:00:27.7]} 32... gxf4 {[%clk 0:02:06.5]} 33. gxf4
{[%clk 0:00:26.4]} 33... Nb8 {[%clk 0:01:59.1]} 34. Bf5 {[%clk 0:00:20.9]} 34...
Kxa3 {[%clk 0:01:57.5]} 35. b5 {[%clk 0:00:19.7]} 35... Kb3 {[%clk 0:01:49.5]}
36. Kd3 {[%clk 0:00:20.2]} 36... a5 {[%clk 0:01:49]} 37. bxa6 {[%clk 0:00:18.7]}
37... bxa6 {[%clk 0:01:49.3]} 38. Bc8 {[%clk 0:00:12.2]} 38... a5 {[%clk
0:01:47.9]} 39. f5 {[%clk 0:00:13.1]} 39... a4 {[%clk 0:01:48.2]} 40. f6 {[%clk
0:00:14]} 40... a3 {[%clk 0:01:48.6]} 41. f7 {[%clk 0:00:14.8]} 41... a2 {[%clk
0:01:48.7]} 42. f8=Q {[%clk 0:00:15.7]} 42... a1=Q {[%clk 0:01:48.4]} 43. Qf2
{[%clk 0:00:07.2]} 43... Qc3+ {[%clk 0:01:46.8]} 44. Ke4 {[%clk 0:00:06.5]}
44... Qxc4+ {[%clk 0:01:46.6]} 45. Kf5 {[%clk 0:00:03.7]} 45... Qxd5+ {[%clk
0:01:46.2]} 46. Kf6 {[%clk 0:00:03.5]} 46... Qe5+ {[%clk 0:01:45.6]} 47. Kf7
{[%clk 0:00:03.5]} 47... c5 {[%clk 0:01:44.1]} 0-1

[Event "*** Titled Tuesday Blitz"]
[Site "Chess.com"]
[Date "2020.12.29"]
[Round "4"]
[White "Susal_De_Silva"]
[Black "MrTattaglia"]
[Result "0-1"]
[WhiteElo "2565"]
[BlackElo "2956"]
[TimeControl "180+1"]
[EndTime "10:37:52 PST"]
[Termination "MrTattaglia won by checkmate"]

1. e4 {[%clk 0:03:00.9]} 1... e6 {[%clk 0:02:57]} 2. d4 {[%clk 0:03:00.8]} 2...
d5 {[%clk 0:02:53.5]} 3. Nc3 {[%clk 0:03:01.7]} 3... Nf6 {[%clk 0:02:45.2]} 4.
e5 {[%clk 0:03:01.6]} 4... Nfd7 {[%clk 0:02:42.4]} 5. f4 {[%clk 0:03:01.2]} 5...
b6 {[%clk 0:02:41.3]} 6. Nf3 {[%clk 0:02:59.2]} 6... Bb4 {[%clk 0:02:41.1]} 7.
Be3 {[%clk 0:02:53.7]} 7... c5 {[%clk 0:02:40.2]} 8. Bd3 {[%clk 0:02:47.6]} 8...
Ba6 {[%clk 0:02:39.3]} 9. O-O {[%clk 0:02:45.8]} 9... Bxd3 {[%clk 0:02:36.6]}
10. cxd3 {[%clk 0:02:37.6]} 10... Bxc3 {[%clk 0:02:33.2]} 11. bxc3 {[%clk
0:02:36]} 11... Nc6 {[%clk 0:02:33.6]} 12. dxc5 {[%clk 0:02:25]} 12... bxc5
{[%clk 0:02:34.5]} 13. d4 {[%clk 0:02:24.6]} 13... cxd4 {[%clk 0:02:33]} 14.
Nxd4 {[%clk 0:02:20.6]} 14... Nxd4 {[%clk 0:02:32]} 15. Bxd4 {[%clk 0:02:20.1]}
15... g6 {[%clk 0:02:31.5]} 16. f5 {[%clk 0:02:08]} 16... gxf5 {[%clk
0:02:28.3]} 17. Qh5 {[%clk 0:02:08]} 17... Rg8 {[%clk 0:02:26.9]} 18. Rf3 {[%clk
0:01:49.5]} 18... Nf8 {[%clk 0:02:19.3]} 19. Rb1 {[%clk 0:01:25.5]} 19... Qg5
{[%clk 0:01:55.7]} 20. Qxg5 {[%clk 0:01:05.3]} 20... Rxg5 {[%clk 0:01:56.6]} 21.
Rb7 {[%clk 0:01:04.9]} 21... a6 {[%clk 0:01:54.7]} 22. Rf1 {[%clk 0:00:59]}
22... Ng6 {[%clk 0:01:49.3]} 23. Rfb1 {[%clk 0:00:54.8]} 23... f4 {[%clk
0:01:48.2]} 24. Rb8+ {[%clk 0:00:28.7]} 24... Rxb8 {[%clk 0:01:46.4]} 25. Rxb8+
{[%clk 0:00:29.6]} 25... Ke7 {[%clk 0:01:44.6]} 26. Bc5+ {[%clk 0:00:14.7]}
26... Kd7 {[%clk 0:01:44.3]} 27. Ra8 {[%clk 0:00:13.6]} 27... Kc6 {[%clk
0:01:40.9]} 28. Bd4 {[%clk 0:00:13.6]} 28... Kb5 {[%clk 0:01:40.1]} 29. Rb8+
{[%clk 0:00:13.5]} 29... Kc4 {[%clk 0:01:40.4]} 30. Rb6 {[%clk 0:00:13.4]} 30...
Nxe5 {[%clk 0:01:37.3]} 31. h4 {[%clk 0:00:12.9]} 31... Nf3+ {[%clk 0:01:36.1]}
32. Kf2 {[%clk 0:00:12.2]} 32... Nxh4 {[%clk 0:01:36.6]} 33. Rxa6 {[%clk
0:00:11]} 33... Rxg2+ {[%clk 0:01:35.2]} 34. Kf1 {[%clk 0:00:11.9]} 34... f3
{[%clk 0:01:31.4]} 35. a4 {[%clk 0:00:11.5]} 35... Re2 {[%clk 0:01:29.8]} 36.
Ra8 {[%clk 0:00:10.7]} 36... Nf5 {[%clk 0:01:29.9]} 37. Bb6 {[%clk 0:00:08.9]}
37... Ng3+ {[%clk 0:01:29.6]} 38. Kg1 {[%clk 0:00:08.6]} 38... Rg2# {[%clk
0:01:30.5]} 0-1

[Event "*** Titled Tuesday Blitz"]
[Site "Chess.com"]
[Date "2020.12.29"]
[Round "4"]
[White "GelmanAlexander"]
[Black "carloseduar100"]
[Result "1-0"]
[WhiteElo "2573"]
[BlackElo "2106"]
[TimeControl "180+1"]
[EndTime "10:37:52 PST"]
[Termination "GelmanAlexander won by checkmate"]

1. d4 {[%clk 0:03:00.9]} 1... d5 {[%clk 0:03:00]} 2. Nc3 {[%clk 0:02:58.8]} 2...
Nf6 {[%clk 0:02:56.5]} 3. Bf4 {[%clk 0:02:59]} 3... c6 {[%clk 0:02:56.3]} 4. f3
{[%clk 0:02:59.1]} 4... e6 {[%clk 0:02:52.1]} 5. e4 {[%clk 0:02:58.2]} 5... dxe4
{[%clk 0:02:51.3]} 6. fxe4 {[%clk 0:02:58.2]} 6... Bb4 {[%clk 0:02:50.2]} 7. Qd3
{[%clk 0:02:58.3]} 7... Nbd7 {[%clk 0:02:40.5]} 8. Nf3 {[%clk 0:02:50.6]} 8...
Qa5 {[%clk 0:02:37.3]} 9. Be2 {[%clk 0:02:44.9]} 9... Bxc3+ {[%clk 0:02:34.2]}
10. bxc3 {[%clk 0:02:44.7]} 10... Nxe4 {[%clk 0:02:31.6]} 11. Qxe4 {[%clk
0:02:42.3]} 11... Qxc3+ {[%clk 0:02:31.2]} 12. Kf2 {[%clk 0:02:42]} 12... Nf6
{[%clk 0:02:23.2]} 13. Qd3 {[%clk 0:02:37.3]} 13... Qa5 {[%clk 0:02:18.2]} 14.
Rhe1 {[%clk 0:02:32]} 14... O-O {[%clk 0:02:12.4]} 15. Kg1 {[%clk 0:02:28.5]}
15... Rd8 {[%clk 0:02:11.8]} 16. Bg5 {[%clk 0:02:23.4]} 16... c5 {[%clk
0:02:01.6]} 17. Bxf6 {[%clk 0:02:22.1]} 17... gxf6 {[%clk 0:02:02.5]} 18. c3
{[%clk 0:02:19.3]} 18... cxd4 {[%clk 0:02:01.8]} 19. cxd4 {[%clk 0:02:19.1]}
19... Bd7 {[%clk 0:02:02]} 20. Qe3 {[%clk 0:02:12.4]} 20... Bc6 {[%clk
0:01:45.9]} 21. Qh6 {[%clk 0:02:09.1]} 21... Qf5 {[%clk 0:01:46.3]} 22. Rad1
{[%clk 0:02:01.4]} 22... Rd5 {[%clk 0:01:38.9]} 23. Bd3 {[%clk 0:01:55.8]} 23...
Qh5 {[%clk 0:01:25.2]} 24. Qxf6 {[%clk 0:01:43.4]} 24... Ra5 {[%clk 0:01:07.5]}
25. Be4 {[%clk 0:01:24.5]} 25... Rxa2 {[%clk 0:00:56.7]} 26. Bxc6 {[%clk
0:01:22.4]} 26... bxc6 {[%clk 0:00:57.6]} 27. Re5 {[%clk 0:01:18.3]} 27... Qg6
{[%clk 0:00:38.8]} 28. Rg5 {[%clk 0:01:17.3]} 28... a5 {[%clk 0:00:32.7]} 29. h4
{[%clk 0:01:12.4]} 29... a4 {[%clk 0:00:15.7]} 30. h5 {[%clk 0:01:10.8]} 30...
Qxg5 {[%clk 0:00:15.8]} 31. Nxg5 {[%clk 0:01:11]} 31... Ra7 {[%clk 0:00:09.9]}
32. h6 {[%clk 0:01:08.4]} 32... Kf8 {[%clk 0:00:09.4]} 33. Nxe6+ {[%clk
0:01:07.8]} 33... Ke8 {[%clk 0:00:09]} 34. Qd8# {[%clk 0:01:07.8]} 1-0

[Event "*** Titled Tuesday Blitz"]
[Site "Chess.com"]
[Date "2020.12.29"]
[Round "4"]
[White "francyIM"]
[Black "jerry_77"]
[Result "1-0"]
[WhiteElo "2698"]
[BlackElo "2495"]
[TimeControl "180+1"]
[EndTime "10:37:54 PST"]
[Termination "francyIM won by resignation"]

1. e4 {[%clk 0:02:58.6]} 1... c6 {[%clk 0:02:57.9]} 2. d4 {[%clk 0:02:41.6]}
2... d5 {[%clk 0:02:58.8]} 3. e5 {[%clk 0:02:39.9]} 3... c5 {[%clk 0:02:58.6]}
4. dxc5 {[%clk 0:02:38.6]} 4... Nc6 {[%clk 0:02:58.7]} 5. a3 {[%clk 0:02:37.8]}
5... Nxe5 {[%clk 0:02:57.8]} 6. b4 {[%clk 0:02:37.2]} 6... g6 {[%clk 0:02:58.1]}
7. Bb2 {[%clk 0:02:37]} 7... Bg7 {[%clk 0:02:57.7]} 8. Nc3 {[%clk 0:02:17.8]}
8... d4 {[%clk 0:02:54.9]} 9. Ne4 {[%clk 0:02:07.8]} 9... d3 {[%clk 0:02:49.6]}
10. Rb1 {[%clk 0:01:54.7]} 10... dxc2 {[%clk 0:02:04]} 11. Qxc2 {[%clk 0:01:44]}
11... Kf8 {[%clk 0:02:03.6]} 12. Rd1 {[%clk 0:01:41.5]} 12... Qc7 {[%clk
0:02:03.5]} 13. f4 {[%clk 0:01:35.9]} 13... Nc6 {[%clk 0:01:50.2]} 14. Bxg7+
{[%clk 0:01:34.4]} 14... Kxg7 {[%clk 0:01:51.1]} 15. Qc3+ {[%clk 0:01:27.3]}
15... Nf6 {[%clk 0:01:43.1]} 16. g3 {[%clk 0:00:38.1]} 16... Bf5 {[%clk
0:01:40.6]} 17. Nxf6 {[%clk 0:00:36.9]} 17... exf6 {[%clk 0:01:40]} 18. Rd6
{[%clk 0:00:34.6]} 18... Rhe8+ {[%clk 0:01:39.6]} 19. Kf2 {[%clk 0:00:34.3]}
19... Rad8 {[%clk 0:01:22]} 20. Qxf6+ {[%clk 0:00:30.2]} 20... Kg8 {[%clk
0:01:20.7]} 21. Bc4 {[%clk 0:00:27.7]} 21... Rxd6 {[%clk 0:01:18.7]} 22. Qxd6
{[%clk 0:00:19.5]} 22... Qxd6 {[%clk 0:01:09.5]} 23. cxd6 {[%clk 0:00:20.4]}
23... Rd8 {[%clk 0:01:09.3]} 24. Nf3 {[%clk 0:00:21]} 24... Rxd6 {[%clk
0:01:09.3]} 25. Re1 {[%clk 0:00:21.9]} 25... h6 {[%clk 0:01:02.1]} 26. Re8+
{[%clk 0:00:20.6]} 26... Kg7 {[%clk 0:01:02.4]} 27. Ke3 {[%clk 0:00:19.9]} 27...
Bd7 {[%clk 0:00:50.4]} 28. Re4 {[%clk 0:00:18.7]} 28... Ne7 {[%clk 0:00:48.7]}
29. Rxe7 {[%clk 0:00:18.3]} 29... Bc6 {[%clk 0:00:47.8]} 30. Rxf7+ {[%clk
0:00:18.5]} 1-0

[Event "*** Titled Tuesday Blitz"]
[Site "Chess.com"]
[Date "2020.12.29"]
[Round "4"]
[White "Enriquack"]
[Black "skoularikii"]
[Result "1-0"]
[WhiteElo "2389"]
[BlackElo "2593"]
[TimeControl "180+1"]
[EndTime "10:37:56 PST"]
[Termination "Enriquack won by resignation"]

1. e4 {[%clk 0:03:00.9]} 1... e5 {[%clk 0:03:00.2]} 2. f4 {[%clk 0:03:00.3]}
2... exf4 {[%clk 0:02:59.9]} 3. Nf3 {[%clk 0:03:00.4]} 3... g5 {[%clk 0:02:58]}
4. Nc3 {[%clk 0:03:00.2]} 4... d6 {[%clk 0:02:50.1]} 5. h4 {[%clk 0:02:52.3]}
5... g4 {[%clk 0:02:47]} 6. Ng1 {[%clk 0:02:52.4]} 6... Be7 {[%clk 0:02:45.3]}
7. d4 {[%clk 0:02:45.4]} 7... Bxh4+ {[%clk 0:02:44.8]} 8. Ke2 {[%clk 0:02:45.8]}
8... Bg3 {[%clk 0:02:28.5]} 9. Qd3 {[%clk 0:02:35.8]} 9... h5 {[%clk 0:02:25.7]}
10. Kd1 {[%clk 0:02:32.5]} 10... Nc6 {[%clk 0:02:16.6]} 11. Nge2 {[%clk
0:02:32.3]} 11... Bd7 {[%clk 0:02:03.3]} 12. Bxf4 {[%clk 0:02:20.8]} 12... Bxf4
{[%clk 0:02:01.2]} 13. Nxf4 {[%clk 0:02:21.7]} 13... Qg5 {[%clk 0:02:00.4]} 14.
Nfd5 {[%clk 0:01:53.2]} 14... O-O-O {[%clk 0:01:57.4]} 15. b4 {[%clk 0:01:53.4]}
15... Nce7 {[%clk 0:01:45.6]} 16. Qc4 {[%clk 0:01:45.3]} 16... c6 {[%clk
0:01:36.9]} 17. b5 {[%clk 0:01:38.4]} 17... f5 {[%clk 0:01:23.7]} 18. bxc6
{[%clk 0:01:36.6]} 18... Nxc6 {[%clk 0:01:18.5]} 19. Rb1 {[%clk 0:01:31.2]}
19... Rf8 {[%clk 0:00:40.3]} 20. Qb5 {[%clk 0:00:43.3]} 20... Nd8 {[%clk
0:00:39.9]} 21. Qa5 {[%clk 0:00:42.6]} 21... Ne6 {[%clk 0:00:22.8]} 22. Qxa7
{[%clk 0:00:42.5]} 22... Kd8 {[%clk 0:00:21.1]} 23. Rxb7 {[%clk 0:00:39.7]}
23... Bc8 {[%clk 0:00:14.8]} 24. Qb6+ {[%clk 0:00:35.4]} 24... Ke8 {[%clk
0:00:14.7]} 25. Bb5+ {[%clk 0:00:35.7]} 1-0